fUSD/lending_fUSD_20240205
["ID","MTS","AMOUNT","RATE_DAILY","PERIOD"]
[313298693,1707113431882,-155.58,0.00035365,2]
[313298695,1707113431892,-200.0,0.00035379,2]
[313298696,1707113431901,-2000.0,0.00035387,2]
[313298697,1707113431911,-500.0,0.00035412,2]
[313298698,1707113431920,-250.0,0.00035433,2]
[313298699,1707113431929,-800.0,0.00035452,2]
[313298700,1707113431938,-321.33,0.00035461,2]
[313298701,1707113431947,-689.83,0.00035487,2]
[313298702,1707113431957,-150.0,0.0003551,2]
[313298703,1707113431966,-155.0,0.00035525,4]
[313298704,1707113431975,-250.0,0.00035526,111]
[313298705,1707113431984,-23890.0,0.00035526,2]
[313298706,1707113431994,-250.0,0.00035544,2]
[313298707,1707113432003,-155.58,0.0003555,2]
[313298708,1707113432012,-176.95,0.00035622,2]
[313298709,1707113432022,-347.06,0.00035626,2]
[313298710,1707113432031,-155.58,0.00035734,2]
[313298711,1707113432041,-453.42944511,0.0003591,5]
[313298712,1707113432050,-155.58,0.00035918,2]
[313298713,1707113432060,-2101.45,0.00036094,2]
[313298714,1707113432069,-155.58,0.00036102,2]
[313298715,1707113432078,-176.95,0.0003617,2]
[313298716,1707113432087,-155.58,0.00036287,2]
[313298717,1707113432096,-155.58,0.00036471,2]
[313298718,1707113432105,-739.01,0.00036627,2]
[313298719,1707113432115,-890.11314166,0.00036648,14]
[313298720,1707113432124,-209.0,0.00036648,2]
[313298721,1707113432133,-209.0,0.00036648,2]
[313298722,1707113432143,-155.58,0.00036655,2]
[313298723,1707113432152,-176.95,0.00036718,2]
[313298724,1707113432161,-275.01,0.00036724,2]
[313298725,1707113432171,-167.61,0.00036814,2]
[313298726,1707113432180,-155.58,0.00036839,2]
[313298727,1707113432189,-155.58,0.00037024,2]
[313298728,1707113432199,-155.58,0.00037208,2]
[313298729,1707113432208,-176.95,0.00037266,2]
[313298730,1707113432218,-379.17651556,0.0003779,2]
[313298731,1707113432227,-693.56131897,0.0003779,2]
[313298732,1707113432236,-465.84110612,0.0003779,2]
[313298733,1707113432245,-1553.67590588,0.0003779,2]
[313298734,1707113432255,-909.68620576,0.00037799,8]
[313298735,1707113432265,-165.53628448,0.000378,2]
[313298736,1707113432274,-2601.89768146,0.000378,11]
[313298737,1707113432283,-160.58935191,0.000378,11]
[313298738,1707113432292,-121.7519775,0.00037814,2]
[313298739,1707113432310,-55.1980225,0.00037814,2]
[313298740,1707113432319,-3616.86639084,0.0003787,10]
[313298741,1707113432331,-10043.7549222,0.0003787,10]
[313298742,1707113432343,-455.94522447,0.0003787,10]
[313298743,1707113432355,-893.71670212,0.0003787,10]
[313298744,1707113432366,-1504.13245275,0.0003787,10]
[313298745,1707113432377,-852.59213198,0.0003787,10]
[313298746,1707113432389,-300.96616691,0.0003787,10]
[313298747,1707113432400,-1582.34439681,0.0003787,10]
[313298748,1707113432416,-578.53223834,0.0003787,10]
[313298749,1707113432431,-1092.88854855,0.0003787,10]
[313298761,1707113437700,-205.0,0.00036648,2]
[313298762,1707113437710,-5658.48005838,0.0003787,10]
[313298763,1707113437721,-832.20251183,0.0003787,10]
[313298764,1707113437808,-42794.642976,0.0003787,10]
[313298765,1707113437821,-5125.96,0.0003787,10]
[313298813,1707113440843,-1698.52317393,0.0003787,10]
[313298814,1707113440924,-713.16322836,0.0003787,10]
[313298815,1707113440938,-877.16886363,0.0003787,10]
[313298816,1707113440953,-2094.61112959,0.0003787,10]
[313298817,1707113440965,-2994.72,0.0003787,10]
[313298833,1707113442556,-431.23497344,0.000378,2]
[313298834,1707113442566,-351.86900247,0.0003787,10]
[313298835,1707113442577,-9330.00410992,0.0003787,10]
[313298836,1707113442612,-500.0,0.0003787,10]
[313298837,1707113442667,-2158.72853717,0.0003787,10]
[313298838,1707113442723,-40330.21655214,0.0003787,10]
[313298839,1707113442734,-495.13548268,0.0003787,10]
[313298840,1707113442746,-459.52724864,0.0003787,10]
[313298841,1707113442780,-8515.63076634,0.0003787,10]
[313298842,1707113442796,-1008.28687562,0.0003787,10]
[313298843,1707113442834,-633.13267263,0.0003787,10]
[313298844,1707113442845,-977.00764136,0.0003787,10]
[313298845,1707113442890,-392.29490377,0.0003787,10]
[313298853,1707113445776,-80.42808855,0.000255,2]
[313298854,1707113445800,-144.60765418,0.000255,2]
[313298855,1707113445809,-2517.88592748,0.0003787,10]
[313298856,1707113445821,-433.77264747,0.0003787,10]
[313298857,1707113445833,-3130.37641834,0.0003787,10]
[313298858,1707113445844,-1283.15486736,0.0003787,10]
[313298859,1707113445855,-1022.67262803,0.0003787,10]
[313298860,1707113903632,800.0,0.00027,30]
[313298877,1707114631683,-2912.44051013,0.0002498,2]
[313298879,1707114631692,-513.77807714,0.00024981,2]
[313298882,1707114631702,-358.0003321,0.00024981,2]
[313298883,1707114631711,-165.47463919,0.00024982,2]
[313298884,1707114631720,-1256.20667676,0.00024985,2]
[313298885,1707114631732,-7823.30645451,0.00024985,2]
[313298886,1707114631743,-4614.60439857,0.00024985,2]
[313298887,1707114631754,-599.51586882,0.00024985,2]
[313298888,1707114631800,-363.36373079,0.00024985,2]
[313298889,1707114631811,-1212.6431333,0.00024985,2]
[313298890,1707114631823,-450.037073,0.00024985,2]
[313298891,1707114631854,-3110.88788272,0.00024985,2]
[313298892,1707114631863,-200.0,0.00025,2]
[313298893,1707114631872,-1612.08631409,0.00026,2]
[313298894,1707114631881,-150.0,0.00027,2]
[313298895,1707114631891,-155.0,0.00033741,2]
[313298896,1707114631900,-176.95,0.00033742,2]
[313298897,1707114631909,-2443.0,0.00034,3]
[313298898,1707114631918,-18635.0,0.000341,3]
[313298899,1707114631928,-357.47,0.00034147,2]
[313298900,1707114631937,-230.14600768,0.0003429,2]
[313298901,1707114631946,-11855.95062026,0.00034742,10]
[313298902,1707114631955,-6281.39704191,0.00034742,10]
[313298903,1707114631967,-6388.20082023,0.00034742,10]
[313298904,1707114631976,-267.78,0.000357,2]
[313298905,1707114631985,-150.0,0.00036005,2]
[313298906,1707114631994,-2178.08,0.00036096,4]
[313298907,1707114632003,-151.25,0.00036145,2]
[313298908,1707114632013,-597.48018043,0.00036194,2]
[313298909,1707114632023,-743.51,0.00036195,2]
[313298910,1707114632033,-250.0,0.00036342,2]
[313298911,1707114632042,-1000.0,0.00036403,2]
[313298912,1707114632051,-357.47,0.00036411,2]
[313298913,1707114632061,-155.84,0.00036632,2]
[313298914,1707114632070,-166.99,0.00036679,2]
[313298915,1707114632078,-499.99,0.00036679,2]
[313298916,1707114632087,-262.75524488,0.0003688,2]
[313298918,1707114632097,-173.06042198,0.00037,4]
[313298920,1707114632106,-209.0,0.0003754,2]
[313298922,1707114632115,-150.0,0.00037748,2]
[313298924,1707114632124,-1247.45526918,0.00037768,4]
[313298926,1707114632133,-1055.46,0.0003777,10]
[313298928,1707114632142,-1450.58,0.0003777,10]
[313298929,1707114632151,-302.1607977,0.00037778,4]
[313298932,1707114632160,-815.61411213,0.00037779,8]
[313298934,1707114632169,-1247.45526917,0.0003778,4]
[313298935,1707114632178,-43250.1969,0.0003778,2]
[313298936,1707114632188,-70355.8151,0.0003778,2]
[313298937,1707114632197,-188.56680278,0.00037794,11]
[313298938,1707114632206,-2789.97859151,0.00037794,11]
[313298939,1707114632217,-152.75469588,0.00037794,2]
[313298940,1707114632227,-596.8552717,0.00037799,2]
[313298941,1707114632235,-252.78434372,0.00037799,2]
[313298942,1707114632244,-409.2606697,0.00037799,2]
[313298943,1707114632254,-152.75469587,0.000378,2]
[313298944,1707114632263,-151.63130857,0.000378,2]
[313298945,1707114632273,-743.51,0.00037839,2]
[313298946,1707114632282,-196.71456252,0.00037868,4]
[313298947,1707114632292,-505.45040056,0.00037868,4]
[313298948,1707114632302,-2650.58557271,0.00037868,2]
[313298949,1707114632311,-586.01761731,0.00037868,2]
[313298950,1707114632321,-155.89384041,0.00037869,4]
[313298951,1707114632330,-3874.41206642,0.00037869,4]
[313298952,1707114632339,-1834.07,0.00037869,5]
[313298953,1707114632348,-72429.7778829,0.0003787,10]
[313298954,1707114632357,-1833.55,0.0003787,5]
[313298955,1707114632366,-4234.17134441,0.00037878,4]
[313298956,1707114632375,-205.94050564,0.00037878,4]
[313298957,1707114632384,-155.0,0.00037878,4]
[313298958,1707114632394,-2795.69072813,0.00037879,4]
[313298959,1707114632403,-11273.72383172,0.00037879,4]
[313298960,1707114632412,-250.78272051,0.00037879,15]
[313298961,1707114632421,-40330.76113798,0.0003788,2]
[313298962,1707114632433,-469.13636334,0.0003788,2]
[313298963,1707114632443,-1186.83409097,0.0003788,2]
[313298964,1707114632470,-782.30663819,0.000357,14]
[313298965,1707114632481,-89.74378843,0.000357,14]
[313298966,1707114632490,-2511.24086484,0.0003788,2]
[313298967,1707114632501,-1922.86375946,0.0003788,2]
[313298968,1707114632516,-1707.13760946,0.0003788,2]
[313298978,1707114637771,-4338.46497506,0.0003788,2]
[313298979,1707114637933,-15708.82079751,0.0003788,2]
[313298980,1707114637945,-87631.49329273,0.0003788,2]
[313298981,1707114637956,-41987.7593031,0.0003788,2]
[313298982,1707114638045,-854.12550887,0.0003788,2]
[313298983,1707114638102,-652.02101257,0.0003788,2]
[313298989,1707114640355,-1208.81,0.00037869,10]
[313298990,1707114640365,-3762.90186329,0.0003788,2]
[313298991,1707114640378,-8836.99818175,0.0003788,2]
[313298992,1707114640415,-32757.8903561,0.0003788,2]
[313298993,1707114640426,-447.16089095,0.0003788,2]
[313298994,1707114640438,-2673.78188682,0.0003788,2]
[313298995,1707114640473,-497.91604933,0.0003788,2]
[313298996,1707114640530,-247347.82504401,0.0003788,2]
[313298997,1707114641234,-260.74656902,0.000378,2]
[313298998,1707114641244,-363.75716828,0.0003788,2]
[313298999,1707114641255,-397.20681402,0.0003788,2]
[313299009,1707114642819,-514.7011426,0.0003788,2]
[313299010,1707114642831,-2017.27286962,0.0003788,2]
[313299011,1707114642988,-1470.26762691,0.0003788,2]
[313299012,1707114643046,-3776.31225169,0.0003788,2]
[313299025,1707114645806,-1164.99999978,0.00037879,4]
[313299026,1707114645916,-382.51727014,0.00037879,4]
[313299027,1707114645928,-618.43363193,0.00037879,4]
[313299028,1707114645937,-206.27153266,0.00037879,4]
[313299029,1707114645946,-6449.4409781,0.0003788,2]
[313299030,1707114645973,-1330.74965155,0.0003788,2]
[313299031,1707114645985,-11922.59744603,0.0003788,2]
[313299032,1707114645996,-19572.16039392,0.0003788,2]
[313299033,1707114646008,-15919.24401965,0.0003788,2]
[313299034,1707114646039,-1044.54639168,0.0003788,2]
[313299045,1707115831872,-150.0,0.00027,2]
[313299046,1707115831882,-155.0,0.0003,2]
[313299047,1707115831891,-175.82035355,0.000344,2]
[313299048,1707115831901,-2165.95090185,0.00034497,4]
[313299049,1707115831910,-2323.72108197,0.00034498,4]
[313299050,1707115831920,-5905.05392551,0.000345,3]
[313299051,1707115831931,-1397.97451286,0.000345,3]
[313299052,1707115831947,-2824.39421698,0.000345,3]
[313299053,1707115831996,-1878.61220278,0.000345,3]
[313299054,1707115832043,-740.58240107,0.000345,3]
[313299055,1707115832057,-563.92816788,0.000345,3]
[313299056,1707115832069,-762.21875318,0.000345,3]
[313299057,1707115832082,-582.38722525,0.000345,3]
[313299058,1707115832109,-2190.22572218,0.000345,3]
[313299059,1707115832121,-1053.42704108,0.000345,3]
[313299060,1707115832132,-1265.4301506,0.000345,3]
[313299061,1707115832160,-847.36934678,0.000345,3]
[313299083,1707115837995,-410.17314583,0.000345,3]
[313299084,1707115838006,-53.22318802,0.000345,3]
[313299085,1707115838016,-589.86160449,0.000345,3]
[313299086,1707115838040,-1007.38297438,0.000345,3]
[313299087,1707115838056,-940.75542113,0.000345,3]
[313299088,1707115838064,-26783.72409503,0.00034742,10]
[313299089,1707115838074,-16173.675619,0.00034742,10]
[313299090,1707115838112,-13028.7037957,0.00034742,10]
[313299091,1707115838123,-5071.20068629,0.00034742,10]
[313299092,1707115838328,-6724.85455948,0.00034742,10]
[313299093,1707115838344,-47367.65207763,0.00034742,10]
[313299094,1707115838355,-16405.47289409,0.00034742,10]
[313299095,1707115838364,-17477.83483885,0.00034742,10]
[313299314,1707115840482,-2258.12544579,0.00034742,10]
[313299334,1707115840653,-473.9326763,0.00034742,10]
[313299336,1707115840662,-29759.78399266,0.00034742,10]
[313299338,1707115840671,-344.32,0.00034991,2]
[313299340,1707115840680,-273.61373566,0.00036,10]
[313299342,1707115840689,-309.89710719,0.00036352,2]
[313299344,1707115840698,-250.0,0.00036564,2]
[313299346,1707115840707,-200.0,0.00036636,2]
[313299348,1707115840716,-735.83,0.00036756,2]
[313299350,1707115840725,-267.78,0.00036825,2]
[313299352,1707115840734,-155.84,0.0003683,2]
[313299354,1707115840743,-150.0,0.00036839,2]
[313299356,1707115840753,-165.14,0.00036939,2]
[313299358,1707115840762,-244.19448032,0.00037,2]
[313299361,1707115840771,-1000.0,0.00037066,2]
[313299363,1707115840780,-800.0,0.00037166,2]
[313299365,1707115840789,-344.32,0.00037254,2]
[313299367,1707115840798,-1183.7096,0.0003768,2]
[313299368,1707115840806,-19109.9488,0.0003778,2]
[313299370,1707115840815,-151.73466857,0.0003778,2]
[313299373,1707115840824,-177.39393224,0.0003778,11]
[313299374,1707115840833,-2557.48037556,0.0003778,11]
[313299376,1707115840842,-150.0,0.00037807,2]
[313299379,1707115840852,-516.85819052,0.00037868,4]
[313299381,1707115840861,-24771.76574123,0.00037869,2]
[313299383,1707115840870,-165.20486671,0.00037879,4]
[313299385,1707115840879,-1030.73224151,0.00037879,4]
[313299386,1707115840888,-359.2896679,0.00037879,4]
[313299388,1707115840897,-10026.65334244,0.00037879,2]
[313299390,1707115840906,-123310.377292,0.0003788,2]
[313299430,1707115841346,-128966.95974876,0.0003788,2]
[313299433,1707115841358,-2171.06496096,0.0003788,2]
[313299435,1707115841370,-509.90446084,0.0003788,2]
[313299439,1707115841402,-1798.36029792,0.0003788,2]
[313299442,1707115841413,-3187.01171233,0.0003788,2]
[313299501,1707115842921,-228.85160586,0.00034742,2]
[313299502,1707115842931,-565.29833886,0.0003788,2]
[313299503,1707115842942,-449.80399366,0.0003788,2]
[313299504,1707115842953,-2702.54118732,0.0003788,2]
[313299505,1707115842964,-620.38351261,0.0003788,2]
[313299506,1707115842975,-7991.64494076,0.0003788,2]
[313299507,1707115842987,-293.30521316,0.0003788,2]
[313299508,1707115843041,-532.05745108,0.0003788,2]
[313299509,1707115843053,-1980.40151876,0.0003788,2]
[313299510,1707115843065,-20044.47739885,0.0003788,2]
[313299511,1707115843090,-2621.4719078,0.0003788,2]
[313299512,1707115843101,-763.43869,0.0003788,2]
[313299513,1707115843113,-1898.46706726,0.0003788,2]
[313299514,1707115843125,-1373.69775017,0.0003788,2]
[313299515,1707115843146,-579.76987676,0.0003788,2]
[313299516,1707115843157,-974.91771303,0.0003788,2]
[313299517,1707115843168,-7857.13485356,0.0003788,2]
[313299518,1707115843180,-911.44761217,0.0003788,2]
[313299519,1707115843191,-301.02675859,0.0003788,2]
[313299520,1707115843203,-375.86332371,0.0003788,2]
[313299521,1707115843214,-3925.00001,0.0003788,2]
[313299522,1707115843225,-3330.0,0.0003788,2]
[313299523,1707115843236,-601.015996,0.0003788,2]
[313299524,1707115843248,-346.11167018,0.0003788,2]
[313299525,1707115843259,-822.29078517,0.0003788,2]
[313299526,1707115843270,-2470.56538937,0.0003788,2]
[313299527,1707115843282,-2237.30399341,0.0003788,2]
[313299528,1707115843294,-22370.76180022,0.0003788,2]
[313299529,1707115843305,-946.27841985,0.0003788,2]
[313299530,1707115845938,-248.33395542,0.00037879,4]
[313299531,1707115845947,-1128.08913836,0.0003788,2]
[313299532,1707115845958,-8799.23216877,0.0003788,2]
[313299533,1707115845992,-832.96355255,0.0003788,2]
[313299534,1707115846051,-1792.70238014,0.0003788,2]
[313299535,1707115846062,-2560.14508689,0.0003788,2]
[313299536,1707115846109,-744.5300742,0.0003788,2]
[313299537,1707115846120,-21361.10797944,0.0003788,2]
[313299538,1707115846219,-3388.44379533,0.0003788,2]
[313299539,1707115846231,-15578.91038629,0.0003788,2]
[313299540,1707115846242,-501.18501056,0.0003788,2]
[313299541,1707115846253,-12120.03458117,0.0003788,2]
[313299542,1707115846264,-1207.22335713,0.0003788,2]
[313299543,1707115846276,-550.2626108,0.0003788,2]
[313299544,1707115846287,-4647.005672,0.0003788,2]
[313299554,1707116046169,500.0,0.0002,2]
[313299555,1707116172987,-286.43805567,0.00022897,2]
[313299556,1707116173008,-155.0,0.00022897,2]
[313299557,1707116173028,-204.18636395,0.00022898,2]
[313299558,1707116173048,-248.19268496,0.00022898,2]
[313299559,1707116173069,-150.0,0.00022899,2]
[313299560,1707116173090,-956.18289542,0.000229,2]
[313299561,1707116173616,-2000.0,0.000229,2]
[313299562,1707116174153,-2000.0,0.000229,2]
[313299563,1707116174648,-2000.0,0.000229,2]
[313299564,1707116175152,-2000.0,0.000229,2]
[313299565,1707116176129,-2000.0,0.000229,2]
[313299566,1707116177716,-2000.0,0.000229,2]
[313299567,1707116181924,-303.0,0.000229,2]
[313299568,1707116188447,-285.01779766,0.00022899,2]
[313299569,1707116188468,-1714.98220234,0.000229,2]
[313299570,1707116218694,-2000.0,0.000229,2]
[313299571,1707116460728,200.0,0.00027,30]
[313299572,1707116507601,-175.82035355,0.000228,2]
[313299573,1707116507622,-1222.9921095,0.00022898,2]
[313299574,1707116507644,-300.0,0.00022898,2]
[313299575,1707116507667,-4198.28763652,0.00022899,2]
[313299576,1707116507689,-8644.58345946,0.000229,2]
[313299577,1707116507710,-150.0,0.000229,2]
[313299578,1707116507734,-1612.08631409,0.00026,2]
[313299579,1707116507759,-150.0,0.00027,2]
[313299580,1707116507781,-155.0,0.0003,2]
[313299581,1707116507802,-647.68894887,0.000321,2]
[313299582,1707116507825,-332.65,0.00034318,2]
[313299583,1707116507846,-2033.96724201,0.0003474,4]
[313299584,1707116507867,-215.28420849,0.0003474,4]
[313299585,1707116507889,-241.88164357,0.00034741,4]
[313299586,1707116507914,-22001.57173906,0.00034742,10]
[313299587,1707116507939,-7918.18634488,0.00034742,10]
[313299607,1707117032087,-150.0,0.00027,2]
[313299609,1707117032097,-296.48737761,0.00029998,2]
[313299611,1707117032109,-435.79844913,0.00029998,2]
[313299612,1707117032193,-879.80048735,0.00029998,2]
[313299613,1707117032203,-1019.16009125,0.00029999,2]
[313299614,1707117032211,-155.0,0.00034278,2]
[313299615,1707117032220,-40.17541028,0.00034279,2]
[313299616,1707117032232,-117.39391913,0.00034279,2]
[313299617,1707117032242,-323.72,0.00034379,2]
[313299618,1707117032251,-598.1247,0.00034732,2]
[313299619,1707117032260,-49493.48746928,0.00034742,10]
[313299620,1707117032279,-1809.51341481,0.00034742,10]
[313299624,1707117032490,-0.17904393,0.00034742,10]
[313299625,1707117032501,-1069.58567382,0.00034742,10]
[313299626,1707117032513,-3062.44528538,0.00034742,10]
[313299627,1707117032524,-1294.0344,0.00034742,10]
[313299642,1707117038111,-590.13408897,0.00034742,10]
[313299643,1707117038275,-7677.89020334,0.00034742,10]
[313299644,1707117038286,-7113.09773243,0.00034742,10]
[313299645,1707117038297,-643.1294748,0.00034742,10]
[313299646,1707117038432,-2270.96425969,0.00034742,10]
[313299647,1707117038441,-23202.84594208,0.00034742,10]
[313299648,1707117038450,-500.0,0.00034742,2]
[313299649,1707117038459,-500.0,0.00034742,2]
[313299650,1707117038469,-500.0,0.00034742,2]
[313299651,1707117038478,-500.0,0.00034742,2]
[313299652,1707117038486,-500.0,0.00034742,2]
[313299653,1707117038495,-3053.13632471,0.00034742,10]
[313299654,1707117038508,-16321.63042541,0.00034742,10]
[313299655,1707117038519,-10911.2812498,0.00034742,10]
[313299656,1707117038529,-208.0,0.00035032,2]
[313299657,1707117038538,-613.31650645,0.00035991,14]
[313299658,1707117038547,-499.99,0.00036077,2]
[313299659,1707117038556,-151.85,0.00036083,2]
[313299660,1707117038566,-8136.82421403,0.00036106,2]
[313299661,1707117040687,-272.65594049,0.00036106,2]
[313299662,1707117040742,-510.13070881,0.00036106,2]
[313299663,1707117040753,-2799.18,0.00036106,2]
[313299664,1707117040854,-9.81913667,0.00036106,2]
[313299665,1707117040864,-826.28,0.00036134,2]
[313299666,1707117040873,-250.0,0.00036292,111]
[313299667,1707117040886,-156.07,0.00036307,2]
[313299668,1707117040895,-150.0,0.0003637,2]
[313299669,1707117040904,-160.0,0.00036404,2]
[313299670,1707117040913,-215.7,0.00036407,2]
[313299671,1707117040923,-165.21,0.0003655,2]
[313299672,1707117040931,-250.0,0.00036551,2]
[313299673,1707117040940,-323.72,0.00036643,2]
[313299674,1707117040949,-840.0,0.00036699,2]
[313299675,1707117040959,-152.08379762,0.00037441,5]
[313299676,1707117040968,-150.39,0.00037443,5]
[313299677,1707117040977,-1061.85868393,0.00037447,4]
[313299678,1707117040986,-205.0205,0.00037448,14]
[313299679,1707117040995,-269.63436569,0.000376,21]
[313299680,1707117041004,-821.42970993,0.0003768,2]
[313299681,1707117041016,-306.963249,0.0003768,2]
[313299682,1707117041027,-384.52164107,0.0003768,2]
[313299683,1707117041036,-1007.34,0.0003777,10]
[313299684,1707117041045,-826.28,0.00037778,2]
[313299685,1707117041054,-6052.62495893,0.0003778,2]
[313299686,1707117041070,-1119.993,0.0003778,2]
[313299719,1707117043115,-500.0,0.0003778,2]
[313299720,1707117043171,-606.39198877,0.0003778,2]
[313299721,1707117043261,-155.0,0.00037779,2]
[313299722,1707117043270,-204.05198259,0.0003778,2]
[313299723,1707117043387,-2105.55,0.0003778,2]
[313299745,1707117046076,-13948.39794198,0.0003778,2]
[313299754,1707117046239,-454.24475171,0.0003778,2]
[313299755,1707117046296,-3282.592433,0.0003778,2]
[313299756,1707117046307,-2248.46080941,0.0003778,2]
[313299757,1707117046318,-3153.81405,0.0003778,2]
[313299758,1707117046330,-5828.49973509,0.0003778,2]
[313299759,1707117046341,-547.62,0.0003778,2]
[313299760,1707117046356,-302.03380715,0.0003778,2]
[313299761,1707117046409,-1729.95685064,0.0003778,2]
[313299762,1707117046420,-2124.63417716,0.0003778,2]
[313299763,1707117046432,-2059.5358014,0.0003778,2]
[313299765,1707118232292,-1230.34354417,0.00026518,2]
[313299766,1707118232436,-507.99999975,0.00026518,2]
[313299767,1707118232450,-2571.16321385,0.00026518,2]
[313299768,1707118234877,-1019.16009125,0.00026517,2]
[313299769,1707118234887,-247.60755429,0.00026517,2]
[313299770,1707118234897,-194.86203847,0.00026518,2]
[313299771,1707118234906,-1612.08631409,0.00026519,2]
[313299772,1707118234916,-157.56932941,0.00026793,2]
[313299773,1707118234926,-158.33847036,0.00026891,2]
[313299774,1707118234935,-25010.62384364,0.00026892,2]
[313299775,1707118234945,-1019.16009125,0.00026893,2]
[313299791,1707118235245,-1019.16009125,0.00026893,2]
[313299792,1707118235269,-1019.16009125,0.00026893,2]
[313299793,1707118235280,-963.06385015,0.000269,2]
[313299794,1707118235291,-615.75190584,0.00026998,2]
[313299795,1707118235301,-150.0,0.00027,2]
[313299796,1707118235311,-155.0,0.0003,2]
[313299797,1707118235320,-618.09,0.0003,2]
[313299798,1707118235330,-345.11,0.00033677,2]
[313299799,1707118235339,-2411.0,0.000347,3]
[313299800,1707118235349,-18427.0,0.000347,3]
[313299801,1707118235358,-524.8238638,0.00034741,4]
[313299802,1707118235368,-8897.46966853,0.00034742,10]
[313299803,1707118235377,-36529.67438429,0.00034742,10]
[313299804,1707118235387,-28634.86625227,0.00034742,10]
[313299805,1707118235396,-250.0,0.00035257,2]
[313299806,1707118235406,-250.0,0.00035554,2]
[313299807,1707118235415,-208.0,0.00035599,2]
[313299808,1707118235424,-872.0,0.00035599,2]
[313299809,1707118235434,-640.29,0.00035763,2]
[313299810,1707118235444,-165.3,0.00035926,2]
[313299811,1707118235453,-186.97829917,0.00035941,2]
[313299812,1707118235477,-158.13170083,0.00035941,2]
[313299813,1707118235487,-151.85,0.00036509,2]
[313299814,1707118235496,-150.0,0.00036525,2]
[313299815,1707118235506,-160.0,0.00036556,2]
[313299816,1707118235515,-603.65666696,0.00037126,2]
[313299817,1707118235526,-500.0,0.00037126,2]
[313299827,1707118238317,-445.94319877,0.00026517,2]
[313299828,1707118238330,-573.21689248,0.00026517,2]
[313299829,1707118238339,-4314.6139323,0.00037126,2]
[313299830,1707118238371,-2901.72940074,0.00037126,2]
[313299831,1707118238380,-2317.35354006,0.00037261,4]
[313299832,1707118238429,-709.85997169,0.00037261,4]
[313299833,1707118238440,-577.24837893,0.00037261,4]
[313299834,1707118238485,-4991.32238741,0.00037261,4]
[313299835,1707118238494,-640.29,0.00037407,2]
[313299836,1707118238503,-151.14314897,0.00037501,2]
[313299837,1707118238516,-200.0,0.00037577,5]
[313299838,1707118238525,-800.0,0.00037577,5]
[313299839,1707118238534,-686.5077,0.00037674,2]
[313299840,1707118238543,-2173.9682,0.00037674,2]
[313299841,1707118238552,-47288.1294,0.00037674,2]
[313299842,1707118238562,-252.0805,0.00037674,2]
[313299843,1707118238571,-275.0295357,0.00037674,15]
[313299844,1707118238584,-724.9704643,0.00037674,15]
[313299845,1707118238593,-296.621,0.00037678,2]
[313299846,1707118238602,-1412.1497,0.0003768,2]
[313299847,1707118238611,-165.3,0.00037723,2]
[313299848,1707118238620,-1820.29993263,0.00037774,14]
[313299849,1707118238629,-328.8002,0.00037774,2]
[313299850,1707118238639,-17573.45501705,0.00037774,2]
[313299851,1707118238651,-423.356324,0.00037774,2]
[313299852,1707118238695,-4906.23264509,0.00037774,2]
[313299853,1707118238707,-613.71908962,0.00037774,2]
[313299854,1707118238755,-367.282388,0.00026385,2]
[313299856,1707118238764,-16341.90106324,0.00037774,2]
[313299862,1707118240828,-1019.16009125,0.00026517,2]
[313299863,1707118240837,-6653.27405099,0.00037774,2]
[313299864,1707118240849,-2973.22591001,0.00037774,2]
[313299865,1707118240858,-1081.0905,0.00037774,2]
[313299866,1707118240867,-1177.82926544,0.00037778,4]
[313299867,1707118240879,-3073.45802496,0.00037778,4]
[313299868,1707118240891,-1205.01901313,0.00037778,4]
[313299869,1707118240900,-258.82614046,0.00037778,4]
[313299870,1707118240910,-1838.0,0.00037779,5]
[313299871,1707118240919,-541.4513,0.0003778,2]
[313299872,1707118240928,-2027.02938607,0.0003778,2]
[313299873,1707118240939,-9077.54866152,0.0003778,2]
[313299874,1707118240950,-8943.84023489,0.0003778,2]
[313299875,1707118240966,-811.81883219,0.0003778,2]
[313299876,1707118241055,-601.19317598,0.0003778,2]